Workbook

Sheet TPS65381A-Q1 Power Estimator
A1: TPS65381A-Q1 Power Estimator | F1: Based on application report: SLVA477B "Basic Calculation of a Buck Converter's Power Stage"
C2: Customer entry cells for power estimation calculations: | D2: Customer Input
C3: Calculated outputs: | D3: Output
F4: VDD6** | L4: VDD5 | Q4: VSOUT1 | V4: Duty Cycle
A5: VBAT Input Supply (at device pin after protection) | C5: 7 | D5: V | F5: VDD6 regulation | G5: Min | H5: =H6*0.9 -> 5.4 | I5: V | L5: VDD5 regulation | M5: Min | N5: =N6*0.98 -> 4.9 | O5: V | Q5: VSOUT1 regulation | R5: Min | S5: =S6*0.98 -> 4.9 | T5: V | V5: D VBAT typ | W5: Min | X5: =H5/(C$5) -> 0.7714285714
G6: Typ | H6: 6 | M6: Typ | N6: 5 | R6: Typ | S6: =C12 -> 5 | W6: Typ | X6: =H6/(C$5) -> 0.8571428571
G7: Max | H7: =H6*1.1 -> 6.6 | M7: Max | N7: =N6*1.02 -> 5.1 | R7: Max | S7: =S6*1.02 -> 5.1 | W7: Max | X7: =H7/(C$5) -> 0.9428571429
F8: VDD6 load | H8: =SUM(B15:B19) -> 775 | I8: mA | L8: VDD5 load | N8: =B15 -> 250 | O8: mA | Q8: VSOUT1 load | S8: =B18 -> 25 | T8: mA
B9: VDD3/5 configured voltage (3.3V or 5V) | C9: 3.3 | D9: V
B10: VDD1 configured voltage (0.8 to 3.3V) | C10: 1.2 | D10: V | F10: VDD6 Input Current | G10: Min | H10: =B21*B22*0.01*H5/C5 -> 478.2857143 | I10: mA | L10: VDD5 Power Consumed | M10: Min | N10: =($H$5-$N7)*N8 -> 75 | O10: mW | Q10: VSOUT1 Input | R10: Min | S10: =IF($C$11="VDD6",H5,C5) -> 5.4 | T10: V
B11: VSOUT1 input Source (VDD6 or VBAT) | C11: VDD6 | D11: VDD6 or VBATP | G11: Typ | H11: =B21*B22*0.01*H6/C5 -> 531.4285714 | M11: Typ | N11: =($H$6-$N6)*$N8 -> 250 | R11: Typ | S11: =IF($C$11="VDD6",H6,C5) -> 6
B12: VSOUT1 configured voltage | C12: 5 | D12: V | G12: Max | H12: =B21*B22*0.01*H7/C5 -> 584.5714286 | M12: Max | N12: =($H$7-$N5)*$N8 -> 425 | R12: Max | S12: =IF($C$11="VDD6",H7,C5) -> 6.6
A14: Load Current on VDD6 | L14: VDD3/5 | Q14: VSOUT1 Power Consumed | R14: Min | S14: =(S10-$S7)*S8 -> 7.5 | T14: mW
A15: VDD5 load current | B15: 250 | C15: mA | L15: VDD3/5 regulation | M15: Min | N15: =N16*0.98 -> 3.234 | O15: V | R15: Typ | S15: =(S11-$S6)*$S8 -> 25
A16: VDD3/5 load current | B16: 250 | C16: mA | M16: Typ | N16: =$C$9 -> 3.3 | R16: Max | S16: =(S12-$S5)*$S8 -> 42.5
A17: VDD1 load current | B17: 250 | C17: mA | M17: Max | N17: =N16*1.02 -> 3.366
A18: VSOUT1 load current | B18: 25 | C18: mA | L18: VDD3/5 load | N18: =B16 -> 250 | O18: mA | Q18: VDD1 FET
A19: Direct loading | B19: 0 | C19: mA | Q19: VDD1 regulation | R19: Min | S19: =S20*0.98 -> 1.176 | T19: V
L20: VDD3/5 Power Consumed | M20: Min | N20: =($H$5-$N17)*N18 -> 508.5 | O20: mW | R20: Typ | S20: =C10 -> 1.2
A21: Total VDD6 loading | B21: =H8 -> 775 | C21: =I8 -> mA | M21: Typ | N21: =($H$6-$N16)*$N18 -> 675 | R21: Max | S21: =S20*1.02 -> 1.224
A22: Efficiency of VDD6 | B22: 80 | C22: % | M22: Max | N22: =($H$7-$N15)*$N18 -> 841.5 | Q22: VDD1 load | S22: =B17 -> 250 | T22: mA
B23: Use efficiency curve from datasheet, figure 4-4, for operating point of application
A24: Diode
A25: Vf (forward voltage drop) | B25: 0.5 | C25: V
B26: Forward drop of VDD6 diode used
A27: Inductor
A28: DCR (DC Resistance) | B28: 0.082 | C28: Ohms
B29: DCR of inductor for VDD6 used
A30: Operating Temp
A31: C | B31: 125
A34: ** Note: This estimator VDD6 power internal power is estimated by using efficiency from datasheet, entered by customer and then the app note to estimates external losses and subtracts them to estimate power in VDD6 internal to the TPS65381A-Q1.
A35: This estimator is based on analysis only and not based on actual testing of the device
A36: Information is application information that is not part of the TI component specification. TI doesn't warrant its accuracy or completeness.
A37: TI’s customers are responsible for determining suitability of components for their purposes. Customers should validate and test their design implementation to confirm system functionality.
S85: VBATP
S86: VDD6

Sheet Notice
